{"text_format":"3","workbook":"xlsx","n_sheets":1,"sheets":["BID PRICING"],"not_rendered":{"defined_names":2},"read":"whole","date_system":"1900"}

{"sheet":"BID PRICING","index":0,"n_rows":56,"n_cols":7,"rows_kept":56,"merged":[[0,1,0,6],[1,1,1,6],[2,1,2,6],[3,1,3,2],[3,3,3,5],[4,1,4,2],[4,3,4,5],[5,1,5,6],[6,1,6,6],[7,1,7,6],[8,1,8,6],[10,1,10,2],[39,1,39,2],[54,1,54,6],[55,1,55,6]]}
[null,"Arlington County Government"]
[null,"ATTACHMENT B  - BID PRICING"]
[]
[null,"NAME OF OFFEROR OR CONTRACTOR",null,"SOLICITATION OR CONTRACT NUMBER",null,null,"PAGE"]
[]
[null,"SCOPE OF WORK"]
[]
[null,"The Contractor shall supply traffic equipment, materials, and technical support listed in the sections below to the County."]
[]
[null,"ITEM NO.","SUPPLIES/SERVICES","EST QTY","UNIT","UNIT PRICE","AMOUNT"]
[null,"SECTION 1 - Radar Detection"]
[null,null,"Side-Fire Radar Detection Systems"]
[null,"1.1","1 AC Radar Assembly",6,"EA",null,{"$f":"IF(F13=\"\",\"\",(D13*(ROUND(F13,2))))","v":""}]
[null,"1.2","2 AC Radar Assembly",10,"EA",null,""]
[null,"1.3","1 Solar Assembly",6,"EA",null,""]
[null,null,"Corner-Fire Radar Detection System"]
[null,"1.4","1 Radar Assembly",1,"EA",null,{"$f":"IF(F17=\"\",\"\",(D17*(ROUND(F17,2))))","v":""}]
[null,"1.5","2 Radar Assembly",1,"EA",null,""]
[null,"1.6","3 Radar Assembly",1,"EA",null,""]
[null,"1.7","4 Radar Assembly",5,"EA",null,""]
[null,null,"Components and Replacement Parts"]
[null,"1.8","Side-fire detector",5,"EA",null,{"$f":"IF(F22=\"\",\"\",(D22*(ROUND(F22,2))))","v":""}]
[null,"1.9","Corner-fire detector",5,"EA",null,""]
[null,"1.1","360 rotating detector backplate",5,"EA",null,""]
[null,"1.11","Mounting kit",5,"EA",null,""]
[null,"1.12","Extended Mounting kit",20,"EA",null,""]
[null,"1.13","Side-fire pigtail (20 ft with connector)",5,"EA",null,""]
[null,"1.14","Corner-fire pigtail (20 ft with connector)",5,"EA",null,{"$f":"IF(F28=\"\",\"\",(D28*(ROUND(F28,2))))","v":""}]
[null,"1.15","Side-fire cable",10000,"LF",null,{"$f":"IF(F29=\"\",\"\",(D29*(ROUND(F29,2))))","v":""}]
[null,"1.16","Corner-fire radar cable",25000,"LF",null,""]
[null,"1.17","Surge protector",5,"EA",null,""]
[null,"1.18","Cable junction box",5,"EA",null,""]
[null,"1.19","Side-fire radar communication module",5,"EA",null,""]
[null,"1.20","Corner-fire radar communication module",5,"EA",null,""]
[null,"1.21","Power adapter",5,"EA",null,""]
[]
[null,"1.22","Tehnical Support",200,"HR",null,""]
[null,"GRAND TOTAL FOR SECTION 1",{"$nulls":4},{"$f":"SUM(G13:G37)","v":{"v":0,"d":"$0.00"}}]
[]
[null,"SECTION 2 - Passive Pedestrian Detection System"]
[null,null,"Pedetrian Detection System"]
[null,"2.1","One-Pair Detection System",5,"EA",null,{"$f":"IF(F42=\"\",\"\",(D42*(ROUND(F42,2))))","v":""}]
[null,"2.2","Two-Pair Detection System",1,"EA",null,""]
[null,"2.3","Three-Pair Detection System",1,"EA",null,""]
[null,"2.4","Four-Pair Detection System",1,"EA",null,""]
[null,null,"Components and Replacement Parts"]
[null,"2.5","Pedestrian detector",5,"EA"]
[null,"2.6","Mounting kit",5,"EA",null,{"$f":"IF(F48=\"\",\"\",(D48*(ROUND(F48,2))))","v":""}]
[null,"2.7","Cable",5000,"LF",null,""]
[null,"2.8","Power supply",5,"EA",null,""]
[null,"2.9","Communication/processor module",5,"EA",null,""]
[null,null,"Support Services"]
[null,"2.10","Tehnical Support",200,"HR",null,{"$f":"IF(F53=\"\",\"\",(D53*(ROUND(F53,2))))","v":""}]
[null,"GRAND TOTAL FOR SECTION 2",{"$nulls":4},{"$f":"SUM(G42:G53)","v":{"v":0,"d":"$0.00"}}]
[]
[null,"All items in a Section must be completed in order to be deemed responsive. "]